bitfinex-derivatives/quotes_BNBF0:USTF0_20250116
["timestamp","ask_amount","ask_price","bid_price","bid_amount"]
[1737042059569,0.72420676,707.34,705.48,0.26035867]
[1737042059764,0.72420676,707.34,705.49,0.26035867]
[1737042059970,0.72420676,707.34,705.5,0.26035867]
[1737042060170,1.05520732,706.93,705.51,0.26035867]
[1737042060366,1.05520732,706.93,705.52,0.26035867]
[1737042060565,1.05520732,706.93,705.53,0.26035867]
[1737042060769,1.05520732,706.93,705.44,0.283511]
[1737042060972,1.05520732,706.93,705.45,0.26032758]
[1737042061173,1.05520732,706.88,705.45,0.26032758]
[1737042062370,1.99045554,707.34,705.45,0.26032758]
[1737042062371,1.05520732,706.73,705.45,0.26032758]
[1737042062771,1.05520732,706.73,705.44,0.283511]
[1737042063071,1.05520732,706.73,705.45,0.26039754]
[1737042063273,2.15438162,707.26,705.45,0.26039754]
[1737042063274,1.05520732,706.66,705.45,0.26039754]
[1737042064080,1.05520732,706.71,705.45,0.26039754]
[1737042064669,0.28300551,706.7,705.45,0.26039754]
[1737042065572,0.28300551,706.7,705.46,0.26035916]
[1737042065874,0.28300551,706.7,705.47,0.26035916]
[1737042066068,0.28300551,706.7,705.44,0.283511]
[1737042066069,0.28300551,706.7,705.48,0.26035916]
[1737042066265,0.28300551,706.7,705.49,0.26035916]
[1737042066466,0.28300551,706.7,705.5,0.26035916]
[1737042066665,0.28300551,706.7,705.51,0.26035916]
[1737042066869,0.28300551,706.7,705.52,0.26035916]
[1737042067071,0.28300551,706.7,705.53,0.26035916]
[1737042067270,0.28300551,706.7,705.54,0.26035916]
[1737042067476,0.28300551,706.7,705.55,0.26035916]
[1737042067774,0.28300551,706.7,705.56,0.26035916]
[1737042068073,0.28300551,706.7,705.44,0.283511]
[1737042068074,0.28300551,706.7,705.57,0.26035916]
[1737042068274,0.28300551,706.7,705.58,0.26035916]
[1737042068476,0.28300551,706.7,705.58,0.26034917]
[1737042068674,0.28300551,706.7,705.44,0.283511]
[1737042068675,0.28300551,706.7,705.59,0.26034917]
[1737042068873,0.28300551,706.7,705.6,0.26034917]
[1737042069075,0.28300551,706.7,705.45,0.26034917]
[1737042069278,0.28300551,706.7,705.46,0.26034917]
[1737042069571,0.28300551,706.7,705.47,0.26034917]
[1737042069775,0.28300551,706.7,705.44,0.283511]
[1737042069776,0.28300551,706.7,705.48,0.26034917]
[1737042069973,0.28300551,706.7,705.44,0.283511]
[1737042069974,0.28300551,706.7,705.49,0.26034917]
[1737042070174,0.28300551,706.7,705.5,0.26034917]
[1737042070374,0.28300551,706.7,705.51,0.26034917]
[1737042070573,0.28300551,706.7,705.52,0.26034917]
[1737042070777,1.05520732,706.68,705.53,0.26034917]
[1737042070976,1.05520732,706.68,705.54,0.26034917]
[1737042071177,1.05520732,706.68,705.44,0.283511]
[1737042071378,1.05520732,706.68,705.45,0.26035402]
[1737042072177,0.28300551,706.7,705.45,0.26035402]
[1737042075183,1.05520732,706.67,705.45,0.26035402]
[1737042076484,1.05520732,706.63,705.45,0.26035402]
[1737042077385,1.05520732,706.63,705.46,0.26039034]
[1737042077588,1.05520732,706.58,705.47,0.26039129]
[1737042077885,1.05520732,706.58,705.48,0.26039129]
[1737042078089,1.05520732,706.58,705.44,0.283511]
[1737042078289,1.05520732,706.58,705.45,0.26040562]
[1737042078681,0.28300551,706.7,705.45,0.26040562]
[1737042078682,1.05520732,706.49,705.45,0.26040562]
[1737042079477,1.05520732,706.49,705.44,0.283511]
[1737042079478,1.05520732,706.49,705.46,0.26040707]
[1737042079678,1.05520732,706.49,705.44,0.283511]
[1737042080086,0.28300551,706.7,705.44,0.283511]
[1737042080087,1.05520732,706.47,705.44,0.283511]
[1737042080686,1.05520732,706.47,705.45,0.26036521]
[1737042081683,1.05520732,706.47,705.44,0.283511]
[1737042082082,0.28300551,706.7,705.44,0.283511]
[1737042082083,1.05520732,706.54,705.44,0.283511]
[1737042082689,1.33827692,706.54,705.44,0.283511]
[1737042082889,0.2830696,706.54,705.44,0.283511]
[1737042085088,1.05520732,706.44,705.44,0.283511]
[1737042086191,0.2830696,706.54,705.44,0.283511]
[1737042086192,1.05520732,706.34,705.44,0.283511]
[1737042086890,1.05520732,706.34,705.45,0.2604045]
[1737042087085,1.05520732,706.41,705.44,0.283511]
[1737042087884,0.2830696,706.54,705.44,0.283511]
[1737042087885,1.05520732,706.51,705.44,0.283511]
[1737042088990,1.33827692,706.54,705.44,0.283511]
[1737042089189,1.33827692,706.54,705.45,0.26037945]
[1737042089385,1.33827692,706.54,705.44,0.283511]
[1737042089585,1.33827692,706.54,705.45,0.26037782]
[1737042089791,0.2830696,706.54,705.45,0.26037782]
[1737042090190,0.2830696,706.54,705.44,0.283511]
[1737042090687,0.2830696,706.54,705.45,0.26037931]
[1737042091290,0.2830696,706.54,705.44,0.283511]
[1737042092092,1.05520732,706.43,705.44,0.283511]
[1737042092585,1.05520732,706.43,705.45,0.2604009]
[1737042092793,1.05520732,706.43,705.44,0.283511]
[1737042092992,1.05520732,706.43,705.45,0.26040341]
[1737042093294,1.05520732,706.43,705.44,0.283511]
[1737042094188,1.05520732,706.41,705.44,0.283511]
[1737042095896,1.05520732,706.41,705.26,1.04706977]
[1737042096096,1.05520732,706.41,705.27,0.26043109]
[1737042096295,0.2830696,706.54,705.27,0.26043109]
[1737042096296,1.05520732,706.39,705.27,0.26043109]
[1737042096489,1.05520732,706.39,705.28,0.26043109]
[1737042096692,1.05520732,706.39,705.29,0.26043109]
[1737042096889,1.05520732,706.39,705.3,0.26043109]
[1737042097091,1.05520732,706.39,705.31,0.26043109]
[1737042097289,1.05520732,706.39,705.32,0.26043109]
[1737042097490,1.05520732,706.37,705.33,0.26043109]
[1737042097694,1.05520732,706.37,705.34,0.26043109]
[1737042097888,1.05520732,706.37,705.18,1.04706977]
[1737042097889,1.05520732,706.37,705.35,0.26042526]
[1737042098092,1.05520732,706.37,705.36,0.26042526]
[1737042098293,1.05520732,706.37,705.37,0.26042526]
[1737042098493,1.05520732,706.41,705.38,0.26042526]
[1737042098798,1.05520732,706.41,705.39,0.26040409]
[1737042098996,1.05520732,706.41,705.4,0.26040409]
[1737042099196,1.05520732,706.41,705.41,0.26040409]
[1737042099498,1.05520732,706.46,705.42,0.26040409]
[1737042099796,1.05520732,706.46,705.43,0.26040409]
[1737042099992,1.05520732,706.46,705.26,0.26040409]
[1737042100189,1.05520732,706.46,705.25,1.04706977]
[1737042100190,1.05520732,706.46,705.27,0.26040409]
[1737042100395,1.05520732,706.46,705.28,0.26040409]
[1737042100594,1.05520732,706.47,705.29,1.30747386]
[1737042100794,1.05520732,706.47,705.3,0.26040409]
[1737042101593,1.05520732,706.47,705.31,0.26038488]
[1737042101795,1.05520732,706.47,705.32,0.26038488]
[1737042101998,0.2830696,706.54,705.32,0.26038488]
[1737042101999,1.05520732,706.5,705.33,0.26038488]
[1737042102294,1.05520732,706.5,705.34,0.26038366]
[1737042102496,1.05520732,706.5,705.35,0.26038366]
[1737042102694,1.05520732,706.5,705.36,0.26038366]
[1737042102898,1.05520732,706.5,705.37,0.26038366]
[1737042103094,1.05520732,706.5,705.33,0.26038366]
[1737042103299,1.05520732,706.5,705.34,0.26038366]
[1737042103601,1.05520732,706.48,705.35,0.26038366]
[1737042104198,1.05520732,706.48,705.36,0.26041345]
[1737042104495,1.05520732,706.48,705.37,0.26041345]
[1737042104703,1.05520732,706.38,705.38,0.26041345]
[1737042104898,1.05520732,706.38,705.39,0.26041345]
[1737042105098,1.05520732,706.38,705.4,0.26041345]
[1737042105299,1.05520732,706.38,705.41,0.26041345]
[1737042105500,1.05520732,706.38,705.42,0.26041345]
[1737042105803,1.05520732,706.46,705.43,0.26041345]
[1737042105993,1.05520732,706.46,705.44,0.26041345]
[1737042106200,1.05520732,706.46,705.45,0.26041345]
[1737042106501,1.05520732,706.46,705.46,0.26041345]
[1737042106697,1.05520732,706.46,705.47,0.26041345]
[1737042106902,1.05520732,706.45,705.36,1.04706977]
[1737042107097,1.05520732,706.45,705.37,0.2603867]
[1737042107700,1.05520732,706.47,705.37,0.2603867]
[1737042107902,1.05520732,706.47,705.38,0.2603867]
[1737042108101,1.05520732,706.47,705.33,1.04706977]
[1737042108303,1.05520732,706.47,705.34,0.26042127]
[1737042108598,1.05520732,706.38,705.34,0.26042127]
[1737042108796,1.05520732,706.38,705.29,1.04706977]
[1737042109597,1.05520732,706.3,705.23,1.04706977]
[1737042111205,1.05520732,706.21,705.13,1.04706977]
[1737042111400,1.05520732,706.21,705.14,0.26046032]
[1737042111998,1.05520732,706.21,705.13,1.04706977]
[1737042112198,1.05520732,706.21,705.14,0.26044685]
[1737042112402,1.05520732,706.21,704.65,1.25648372]
[1737042112403,1.05520732,706.27,705.16,1.04706977]
[1737042112597,1.05520732,706.27,705.17,0.26043892]
[1737042112998,1.05520732,706.27,705.16,1.04706977]
[1737042113305,1.05520732,706.27,705.17,0.26042763]
[1737042113900,1.05520732,706.43,705.17,0.26042763]
[1737042114101,1.05520732,706.43,705.18,0.26042763]
[1737042114299,1.05520732,706.43,705.19,0.26042763]
[1737042114499,1.05520732,706.43,705.2,0.26042763]
[1737042114699,1.05520732,706.43,705.14,0.26042763]
[1737042115006,1.05520732,706.44,705.17,1.04706977]
[1737042115206,1.05520732,706.44,705.18,0.26041744]
[1737042115905,1.05520732,706.44,705.19,0.26040428]
[1737042116105,1.05520732,706.44,704.59,1.25648372]
[1737042116106,1.05520732,706.36,705.25,1.04706977]
[1737042116405,1.05520732,706.36,705.26,0.26040428]
[1737042116600,1.05520732,706.36,705.25,1.04706977]
[1737042116800,1.05520732,706.36,705.26,0.26040679]
[1737042117607,1.05520732,706.38,705.29,1.04706977]
[1737042117906,1.05520732,706.38,705.3,0.26041147]
[1737042118107,1.05520732,706.38,705.3,0.26040342]
[1737042118406,1.05520732,706.38,705.29,1.04706977]
[1737042118606,1.05520732,706.38,705.3,0.26040824]
[1737042118906,1.05520732,706.38,704.81,1.25648372]
[1737042118907,1.05520732,706.43,705.31,0.26040389]
[1737042119106,1.05520732,706.43,705.24,1.04706977]
[1737042119307,1.05520732,706.43,705.25,0.26041303]
[1737042120107,1.05520732,706.45,705.25,0.26041303]
[1737042120308,1.05520732,706.45,705.26,0.26041303]
[1737042120506,1.05520732,706.45,705.27,0.26041303]
[1737042120704,1.05520732,706.45,705.24,0.26040417]
[1737042120905,1.05520732,706.45,705.25,0.26040417]
[1737042121205,1.05520732,706.45,705.26,0.26040417]
[1737042121405,0.2830696,706.54,705.26,0.26040417]
[1737042121406,1.05520732,706.44,705.27,0.26040417]
[1737042122507,1.05520732,706.45,705.27,1.30747394]
[1737042122707,1.05520732,706.45,705.28,0.26040417]
[1737042123402,1.05520732,706.37,705.28,0.26040417]
[1737042124501,1.05520732,706.38,705.28,1.30747394]
[1737042124701,1.05520732,706.38,705.29,0.26040417]
[1737042125104,1.05520732,706.38,705.28,1.04706977]
[1737042125305,1.05520732,706.38,705.29,0.26041815]
[1737042125608,1.05520732,706.35,705.29,0.26041815]
[1737042125810,1.05520732,706.35,705.27,1.04706977]
[1737042126007,1.05520732,706.35,705.28,0.26041387]
[1737042127010,1.05520732,706.35,705.28,1.30748364]
[1737042127209,1.05520732,706.35,705.29,0.26041387]
[1737042127912,1.05520732,706.34,705.29,0.26041387]
[1737042128113,1.05520732,706.34,705.3,0.26041387]
[1737042128306,1.05520732,706.34,705.31,0.26041387]
[1737042128510,1.05520732,706.34,705.32,0.26041387]
[1737042128708,1.05520732,706.34,705.28,0.26041387]
[1737042128908,1.05520732,706.34,705.29,0.26044191]
[1737042129109,1.05520732,706.34,705.3,0.26044191]
[1737042129413,1.05520732,706.34,704.79,1.25648372]
[1737042129414,1.05520732,706.28,705.24,1.04706977]
[1737042129613,1.05520732,706.28,705.25,0.26045237]
[1737042130509,1.05520732,706.26,705.25,0.26045237]
[1737042130714,1.05520732,706.26,705.26,0.26045511]
[1737042131015,1.05520732,706.26,705.27,0.26045511]
[1737042131214,1.05520732,706.26,705.28,0.26045511]
[1737042131515,1.05520732,706.27,705.29,0.26045511]
[1737042131718,1.05520732,706.27,705.3,0.26045511]
[1737042131907,1.05520732,706.27,705.22,1.04706977]
[1737042132111,1.05520732,706.27,705.23,0.26045087]
[1737042132313,1.05520732,706.26,705.23,0.26045087]
[1737042132511,1.05520732,706.26,705.2,1.04706977]
[1737042132512,1.05520732,706.26,705.24,0.26045087]
[1737042132708,1.05520732,706.26,705.25,0.26045087]
[1737042132907,1.05520732,706.26,705.26,0.26045087]
[1737042133109,1.05520732,706.26,705.27,0.26045087]
[1737042133315,1.05520732,706.26,705.2,1.04706977]
[1737042133516,0.72994559,706.53,705.21,0.26045855]
[1737042133517,1.05520732,706.25,705.21,0.26045855]
[1737042133814,1.05520732,706.25,705.22,0.26045855]
[1737042134011,1.05520732,706.25,705.23,0.26045449]
[1737042134217,1.05520732,706.25,705.24,0.26045449]
[1737042134417,1.05520732,706.25,705.25,0.26045449]
[1737042134716,1.05520732,706.25,705.18,1.04706977]
[1737042134717,1.05520732,706.25,705.26,0.26045449]
[1737042134917,1.05520732,706.23,705.27,0.26045449]
[1737042135119,1.05520732,706.23,705.28,0.26045449]
[1737042135312,1.05520732,706.23,705.29,0.26045449]
[1737042135617,1.05520732,706.23,705.3,0.26045449]
[1737042135817,1.05520732,706.23,705.2,0.26045449]
[1737042136017,1.05520732,706.23,705.21,0.26043867]
[1737042136219,1.05520732,706.26,705.22,0.26043867]
[1737042137317,1.78515291,706.53,705.22,0.26043867]
[1737042137318,1.05520732,706.28,705.25,1.04706977]
[1737042137616,1.05520732,706.28,705.26,0.26043867]
[1737042138318,1.05520732,706.26,705.26,0.26043867]
[1737042138519,1.05520732,706.26,705.27,0.26043867]
[1737042138818,1.05520732,706.26,705.28,0.2604379]
[1737042139016,1.05520732,706.26,705.24,1.04706977]
[1737042139017,1.05520732,706.26,705.29,0.2604379]
[1737042139213,1.05520732,706.26,705.24,1.04706977]
[1737042139214,1.05520732,706.26,705.25,0.2604379]
[1737042139415,1.05520732,706.26,705.26,0.2604379]
[1737042139616,1.05520732,706.27,705.27,0.2604379]
[1737042140917,1.05520732,706.31,705.3,1.04706977]
[1737042141118,1.05520732,706.31,705.31,0.2604379]
[1737042142116,1.05520732,706.31,705.32,0.26039399]
[1737042142319,1.05520732,706.31,704.87,1.25648372]
[1737042142320,1.05520732,706.3,705.31,1.30746376]
[1737042142615,1.05520732,706.3,705.32,0.26039399]
[1737042143722,1.05520732,706.33,705.34,1.04706977]
[1737042144720,1.05520732,706.49,705.26,1.04706977]
[1737042144913,1.05520732,706.49,705.27,0.26040119]
[1737042145821,1.05520732,706.47,705.27,0.26040119]
[1737042146020,1.05520732,706.47,705.28,0.26040119]
[1737042146314,1.05520732,706.47,705.29,0.26040119]
[1737042146514,1.05520732,706.47,704.64,1.25648372]
[1737042146515,1.05520732,706.47,705.25,1.04706977]
[1737042146918,1.05520732,706.47,705.26,0.26039801]
[1737042147623,1.05520732,706.48,705.26,1.30746778]
[1737042147920,1.05520732,706.48,705.27,0.26039801]
[1737042148516,1.05520732,706.49,705.27,0.26039801]
[1737042149421,1.05520732,706.49,705.26,1.04706977]
[1737042149621,1.05520732,706.49,705.27,0.26038886]
[1737042150024,0.2830696,706.54,705.27,0.26038886]
[1737042150025,1.05520732,706.51,705.27,1.30745863]
[1737042150219,1.05520732,706.51,705.28,0.2603846]
[1737042151020,0.2830696,706.54,705.37,1.04706977]
[1737042151021,1.05520732,706.46,705.37,1.04706977]
[1737042151221,1.05520732,706.46,705.38,0.2603846]
[1737042152227,1.05520732,706.46,705.35,1.04706977]
[1737042153026,1.05520732,706.48,705.36,0.26038392]
[1737042153927,1.33827692,706.54,705.36,0.26038392]
[1737042154225,1.33827692,706.54,705.3,1.04706977]
[1737042154427,1.33827692,706.54,705.31,0.26038983]
[1737042154828,1.33827692,706.54,705.3,1.04706977]
[1737042155026,1.33827692,706.54,705.31,0.26038909]
[1737042155326,1.33827692,706.54,705.24,1.04706977]
[1737042155527,1.33827692,706.54,705.25,0.26040474]
[1737042155828,1.33827692,706.54,705.24,1.04706977]
[1737042156126,1.33827692,706.54,705.25,0.26041645]
[1737042156324,1.05520732,706.5,705.25,0.26041645]
[1737042156522,1.05520732,706.5,705.26,0.26041645]
[1737042156723,1.05520732,706.5,705.27,0.26041645]
[1737042156922,1.05520732,706.5,705.18,1.04706977]
[1737042157122,1.05520732,706.5,705.19,0.26043104]
[1737042157326,1.05520732,706.42,705.2,1.04706977]
[1737042157522,1.05520732,706.42,705.21,0.26042598]
[1737042158226,1.05520732,706.42,705.22,0.26041739]
[1737042158425,1.05520732,706.4,705.23,0.26041739]
[1737042158626,1.05520732,706.4,705.24,0.26041739]
[1737042158827,1.05520732,706.4,705.25,0.26041739]
[1737042159029,1.05520732,706.4,705.26,0.26041739]
[1737042159228,1.05520732,706.4,705.27,0.26041739]
[1737042159428,1.05520732,706.4,705.28,0.26041739]
[1737042159626,1.05520732,706.42,705.2,1.04706977]
[1737042159825,1.05520732,706.42,705.21,0.26042446]
[1737042160231,1.05520732,706.42,705.2,1.04706977]
[1737042160531,1.05520732,706.42,705.21,0.26042406]
[1737042160931,1.05520732,706.4,705.22,1.04706977]
[1737042161133,1.05520732,706.4,705.23,0.26042406]
[1737042162036,0.2830696,706.54,705.23,0.26042406]
[1737042162037,1.05520732,706.38,705.23,0.26042406]
[1737042162334,1.05520732,706.38,705.24,0.26042406]
[1737042162534,1.05520732,706.38,705.25,0.26042406]
[1737042162728,1.05520732,706.38,705.26,0.26042406]
[1737042162934,1.05520732,706.38,705.27,0.26035138]
[1737042163134,1.05520732,706.49,705.31,1.04706977]
[1737042163333,1.05520732,706.49,705.32,0.26035138]
[1737042163836,0.2830696,706.54,705.44,1.04706977]
[1737042164035,0.2830696,706.54,705.45,0.26035138]
[1737042165334,0.2830696,706.54,705.46,0.26035138]
[1737042165536,0.2830696,706.54,705.39,1.04706977]
[1737042165837,1.05520732,706.48,705.39,1.04706977]
[1737042166932,0.2830696,706.54,705.29,1.04706977]
[1737042167136,0.2830696,706.54,705.3,0.26036443]
[1737042168140,0.2830696,706.54,705.31,1.04706977]
[1737042168336,0.2830696,706.54,705.32,0.26037367]
[1737042169743,0.2830696,706.54,705.33,0.26037367]
[1737042169938,0.2830696,706.54,705.34,0.26037367]
[1737042170136,0.2830696,706.54,705.35,0.26037367]
[1737042170340,0.2830696,706.54,705.26,1.04706977]
[1737042170540,0.2830696,706.54,705.27,0.26038188]
[1737042171043,0.2830696,706.54,705.28,0.26037005]
[1737042171236,0.2830696,706.54,705.27,0.26037005]
[1737042171442,0.2830696,706.54,705.28,0.26037005]
[1737042171642,0.2830696,706.54,705.29,0.26037005]
[1737042171845,0.2830696,706.54,705.3,1.30743982]
[1737042172045,0.2830696,706.54,705.31,0.26037005]
[1737042173245,0.2830696,706.54,705.31,1.30743982]
[1737042173447,0.2830696,706.54,705.31,1.04706977]
[1737042173646,0.2830696,706.54,705.32,0.26039637]
[1737042173941,0.2830696,706.54,705.31,1.04706977]
[1737042174146,0.2830696,706.54,705.32,0.2604014]
[1737042174341,1.05520732,706.49,705.26,1.04706977]
[1737042174546,1.05520732,706.49,705.27,0.26041683]
[1737042175342,1.05520732,706.3,705.3,1.04706977]
[1737042176647,1.05520732,706.3,700.74,6.42720885]
[1737042176648,1.05520732,706.32,705.05,1.04706977]
[1737042176840,1.05520732,706.32,705.06,0.26048329]
[1737042177445,1.05520732,706.32,705.05,1.04706977]
[1737042177847,1.05520732,706.24,705.05,1.04706977]
[1737042178047,1.05520732,706.24,705.04,1.04706977]
[1737042178444,1.05520732,706.24,705.06,0.26046347]
[1737042179049,1.05520732,706.32,705.07,0.26046347]
[1737042179246,1.05520732,706.32,705.08,0.26046347]
[1737042179548,1.05520732,706.32,705.09,0.52093569]
[1737042179743,1.05520732,706.32,705.1,0.26046859]
[1737042181251,1.05520732,706.34,705.09,0.2604671]
[1737042181550,1.05520732,706.34,705.1,0.26046581]
[1737042181947,1.05520732,706.34,705.09,0.2604671]
[1737042182152,1.05520732,706.34,705.1,0.26046772]
[1737042182453,1.05520732,706.36,705.1,0.26046772]
[1737042183354,1.05520732,706.35,705.1,0.26046772]
[1737042184052,1.05520732,706.35,705.09,0.2604671]
[1737042184250,1.05520732,706.35,705.1,0.26051944]
[1737042184451,0.28314975,706.34,705.1,0.26051944]
[1737042184655,1.05520732,706.18,705.1,0.26051944]
[1737042185251,1.05520732,706.18,705.09,0.2604671]
[1737042185453,1.05520732,706.18,705.1,0.26050199]
[1737042185653,1.05520732,706.28,705.1,0.26050199]
[1737042186854,1.05520732,706.3,705.1,0.26050199]
[1737042187953,1.05520732,706.31,705.1,0.26050199]
[1737042188154,1.05520732,706.31,705.11,0.26050199]
[1737042188452,1.05520732,706.31,705.12,0.26050199]
[1737042188652,1.05520732,706.31,705.13,0.26050199]
[1737042188847,0.28314975,706.34,705.14,0.26050199]
[1737042189150,0.28314975,706.34,704.87,1.04706977]
[1737042189454,0.28314975,706.34,704.88,0.54421106]
[1737042189656,0.28314975,706.34,704.89,0.26047483]
[1737042190153,0.28314975,706.34,704.9,0.26045703]
[1737042190360,0.28314975,706.34,704.91,0.26045703]
[1737042190560,0.28314975,706.34,704.92,0.26045703]
[1737042190756,0.28314975,706.34,704.93,0.26045703]
[1737042190952,0.28314975,706.34,704.94,0.26045703]
[1737042191152,0.28314975,706.34,704.95,0.54416509]
[1737042191356,0.28314975,706.34,704.96,0.26045703]
[1737042192160,0.28314975,706.34,704.97,0.28370001]
[1737042192357,0.28314975,706.34,704.98,0.26046452]
[1737042193964,0.28314975,706.34,704.97,0.28370001]
[1737042194966,0.28314975,706.34,704.97,1.33076978]
[1737042195465,0.28314975,706.34,704.98,0.26047555]
[1737042195668,0.28314975,706.34,704.98,0.52095178]
[1737042196064,0.28314975,706.34,704.99,0.26047623]
[1737042196467,0.28314975,706.34,704.98,0.26047555]
[1737042198270,0.28314975,706.34,704.97,0.28370001]
[1737042204070,0.28314975,706.34,704.98,0.26045393]
[1737042204267,0.28314975,706.34,704.97,0.28370001]
[1737042204471,0.28314975,706.34,704.98,0.2604551]
[1737042205166,1.05520732,706.33,705.09,1.04706977]
[1737042205370,1.05520732,706.33,705.1,0.2604551]
[1737042205975,1.05520732,706.33,705.09,1.04706977]
[1737042206175,1.33835707,706.34,705.14,1.04706977]
[1737042206370,1.33835707,706.34,705.15,0.26044416]
[1737042206866,1.33835707,706.34,705.14,1.04706977]
[1737042206867,1.33835707,706.34,705.16,0.26044512]
[1737042207070,1.33835707,706.34,705.17,0.26044512]
[1737042207270,1.33835707,706.34,705.18,0.26044512]
[1737042207474,1.33835707,706.34,705.19,0.26044512]
[1737042207774,1.33835707,706.34,705.2,0.26044512]
[1737042207974,1.33835707,706.34,705.21,0.26044512]
[1737042208174,1.33835707,706.34,705.22,0.26044512]
[1737042208375,1.33835707,706.34,705.23,0.26044512]
[1737042208577,1.05520732,706.32,705.24,0.26044512]
[1737042208874,1.05520732,706.32,705.25,0.26043624]
[1737042209174,1.05520732,706.32,705.26,0.26043624]
[1737042209380,1.05520732,706.32,705.27,0.26043624]
[1737042209674,1.05520732,706.29,705.2,1.04706977]
[1737042209875,1.05520732,706.29,705.21,0.2604437]
[1737042210873,1.05520732,706.33,705.24,1.04706977]
[1737042211074,1.05520732,706.33,705.25,0.2604437]
[1737042212075,1.05520732,706.32,705.25,0.2604437]
[1737042213376,1.33835707,706.34,705.25,0.2604437]
[1737042213676,1.33835707,706.34,705.26,0.2604437]
[1737042213971,1.33835707,706.34,705.27,0.2604437]
[1737042214171,1.33835707,706.34,705.22,1.04706977]
[1737042214376,0.28314975,706.34,705.28,1.04706977]
[1737042214680,0.28314975,706.34,705.29,0.26041022]
[1737042214875,0.28314975,706.34,705.28,1.04706977]
[1737042215069,0.28314975,706.34,705.29,0.26041116]
[1737042215473,0.28314975,706.34,705.29,1.30748093]
[1737042215676,0.28314975,706.34,705.3,0.26041116]
[1737042216874,0.28314975,706.34,705.3,1.30748093]
[1737042217076,0.28314975,706.34,705.31,0.26037577]
[1737042217876,0.28314975,706.34,705.32,0.26037577]
[1737042218176,0.28314975,706.34,705.33,0.26037577]
[1737042218471,0.28314975,706.34,705.34,0.26037577]
[1737042218676,1.05520732,706.63,705.35,0.26037577]
[1737042218875,1.05520732,706.63,705.36,0.26037577]
[1737042219077,1.05520732,706.65,705.37,0.26037577]
[1737042219278,1.05520732,706.65,705.38,0.26037577]
[1737042219480,1.05520732,706.65,705.39,0.26037577]
[1737042219675,1.05520732,706.65,705.4,0.26037577]
[1737042219877,1.05520732,706.65,705.41,0.26033665]
[1737042220080,1.05520732,706.65,705.42,0.26033665]
[1737042220279,1.05520732,707.01,704.99,0.28369196]
[1737042220280,1.05520732,706.76,705.43,0.26033665]
[1737042220475,1.05520732,706.76,705.29,0.26033665]
[1737042220682,1.05520732,706.76,705.3,0.26033665]
[1737042220878,1.05520732,706.76,705.31,0.26033665]
[1737042221084,1.05520732,706.69,705.34,1.04706977]
[1737042221276,1.05520732,706.69,705.35,0.26033665]
[1737042222585,1.05520732,706.69,705.36,0.52072414]
[1737042222888,1.05520732,706.65,705.37,0.26036264]
[1737042223985,1.05520732,706.7,705.37,0.26036264]
[1737042224886,1.05520732,706.71,705.37,0.26036264]
[1737042225289,1.05520732,706.71,705.36,0.2603615]
[1737042225488,1.05520732,706.71,705.37,0.26037266]
[1737042225788,1.05520732,706.66,705.37,0.26037266]
[1737042227489,1.33823286,706.65,705.37,0.26037266]
[1737042227685,0.28302954,706.64,705.37,0.26037266]
[1737042228191,0.28302954,706.64,705.38,0.5207771]
[1737042228492,1.05520732,706.61,705.39,0.26038855]
[1737042229794,1.05520732,706.62,705.39,0.26038855]
[1737042230192,0.28304156,706.61,705.39,0.26038855]
[1737042230695,0.28304156,706.61,705.38,0.26038855]
[1737042230989,0.28304156,706.61,705.39,0.26036777]
[1737042231487,0.28304156,706.61,705.4,0.26036334]
[1737042231693,0.28304156,706.61,705.41,0.26036334]
[1737042231994,0.28304156,706.61,705.42,0.26036334]
[1737042232193,0.28304156,706.61,705.43,0.26036334]
[1737042232393,0.28304156,706.61,705.44,0.26036334]
[1737042232589,0.28304156,706.61,705.45,0.26036334]
[1737042232789,0.28304156,706.61,705.46,0.26036334]
[1737042232990,0.28304156,706.61,705.47,0.26036334]
[1737042233191,0.28304156,706.61,705.48,0.26036334]
[1737042233388,0.28304156,706.61,704.85,1.25648372]
[1737042233389,1.05520732,706.6,705.27,1.04706977]
[1737042233593,1.05520732,706.6,705.28,0.26039646]
[1737042234495,0.28304156,706.61,705.28,0.26039646]
[1737042234496,1.05520732,706.52,705.28,0.26039646]
[1737042234696,1.05520732,706.52,705.29,0.26039646]
[1737042234897,1.05520732,706.52,705.21,0.26039646]
[1737042235097,1.05520732,706.52,705.22,0.26039646]
[1737042235295,1.05520732,706.54,705.24,1.04706977]
[1737042235491,1.05520732,706.54,705.25,0.26039646]
[1737042235893,1.05520732,706.54,705.26,1.04706977]
[1737042236093,1.05520732,706.54,705.27,0.26039646]
[1737042236294,1.05520732,706.54,705.28,0.26038358]
[1737042236492,1.05520732,706.54,705.29,0.26038358]
[1737042236696,1.05520732,706.54,705.3,0.26038358]
[1737042236899,1.05520732,706.54,705.26,1.04706977]
[1737042237198,1.05520732,706.54,705.28,1.04706977]
[1737042237393,1.05520732,706.54,705.29,0.26038261]
[1737042238394,1.05520732,706.51,705.29,0.26038261]
[1737042238598,1.05520732,706.51,705.3,0.26038261]
[1737042238894,1.05520732,706.51,705.31,0.26038261]
[1737042239093,1.05520732,706.51,705.27,1.04706977]
[1737042239094,1.05520732,706.51,705.28,0.26038261]
[1737042239300,1.05520732,706.51,705.3,1.04706977]